[Event "LR Global GM Aspirant-1 2024"]
[Site "Dhaka"]
[Date "2024.02.14"]
[Round "3.4"]
[White "Murshed, Niaz"]
[Black "Liyanage, Ranindu Dilshan"]
[Result "0-1"]
[ECO "D35"]
[WhiteElo "2363"]
[BlackElo "2366"]
[Annotator "TA"]
[PlyCount "48"]
[EventDate "2024.02.12"]
[EventType "tourn"]
[EventCountry "BAN"]
[SourceTitle "playchess.com"]
[Source "ChessBase"]
[SourceQuality "1"]
[TimeControl "5400+30"]

{[%evp 11,48,17,20,10,29,16,22,7,16,0,21,25,31,6,9,18,8,6,32,24,85,103,82,79,79,46,85,72,81,34,72,43,62,43,37,12,59,-252,-258]} 1. d4 {[%emt 0:00:09]} Nf6 {[%emt 0:01:28]} 2. c4 {[%emt 0:00:34]} e6 {[%emt 0:00:09]} 3. Nf3 {[%emt 0:00:05]} d5 {[%emt 0:00:16]} 4. Nc3 {[%emt 0:00:08]} Nbd7 {[%emt 0:00:44]} 5. cxd5 {[%emt 0:01:09]} exd5 {[%emt 0:00:07]} 6. Bf4 {[%emt 0:00:26]} Bb4 {[%emt 0:00:58]} 7. Rc1 {[%emt 0:02:06]} O-O {[%emt 0:07:38]} 8. e3 {[%emt 0:01:15]} c5 {[%emt 0:03:19]} 9. Be2 {[%emt 0:02:03][%cal Bf1e2,Be2f3,Bf3g4][%mdl 32] The position is equal.} c4 {[%emt 0:05:03]} 10. Nd2 {[%emt 0:02:51]} Qa5 {[%emt 0:04:50]} 11. Qc2 {[%emt 0:05:51]} Re8 {[%emt 0:04:30]} 12. O-O {[%emt 0:00:19]} b5 {[%emt 0:06:05]} 13. Bf3 {[%emt 0:05:06]} Bb7 {[%emt 0:01:28]} 14. Ra1 {[%emt 0:05:41] Threatening a4.} Bf8 {[%emt 0:09:44][%cal Bb4f8,Bf8d6,Bd6f4][%mdl 32]} 15. a3 {[%emt 0:01:42]} Rec8 {[%emt 0:09:17]} (15... Qb6 $11) 16. g4 $16 {[%emt 0:01:46][%cal Bg2g4,Bg4g5][%mdl 32]} Nb6 {[%emt 0:05:17]} 17. g5 {[%emt 0:01:39]} Ne8 {[%emt 0:00:21]} 18. Bg4 {[%emt 0:01:39]} Rc6 {[%emt 0:01:38]} 19. Nf3 {[%emt 0:02:04]} Bd6 {[%emt 0:05:05]} 20. Kg2 {[%emt 0:04:01]} (20. h4 $16) 20... Bc8 {[%emt 0:02:34]} 21. Bxc8 {[%emt 0:02:21]} Rcxc8 {[%emt 0:00:50]} 22. h4 {[%emt 0:00:40]} Qa6 {[%emt 0:03:39]} 23. h5 {[%emt 0:01:29]} Qb7 {[%emt 0:04:09]} (23... Bxf4 $11 24. exf4 Rd8) 24. Nxb5 $2 {[%emt 0:02:08][%mdl 8192] [#]} (24. Qf5 $14 {keeps the upper hand.}) 24... Bxf4 {[%emt 0:00:35] Weighted Error Value: White=0.37/Black=0.17 (very precise) .  Loses game:     	White=1     	---        Mistake:       	White=1     	Black=2      Inaccurate:     	White=2     	Black=3      OK:         	White=5     	Black=7      Best:        	---       	Black=1} 0-1

[Event "LR Global GM Aspirant-1 2024"]
[Site "Dhaka"]
[Date "2024.02.14"]
[Round "3.5"]
[White "Barua, Dibyendu"]
[Black "Rahman, Ziaur"]
[Result "1/2-1/2"]
[ECO "B58"]
[WhiteElo "2404"]
[BlackElo "2428"]
[Annotator "TA"]
[PlyCount "29"]
[EventDate "2024.02.12"]
[EventType "tourn"]
[EventCountry "BAN"]
[SourceTitle "playchess.com"]
[Source "ChessBase"]
[SourceQuality "1"]
[TimeControl "5400+30"]

{[%evp 24,29,0,0,8,0,0,0]} 1. e4 {[%emt 0:01:22]} c5 {[%emt 0:00:29]} 2. Nf3 {[%emt 0:00:19]} Nc6 {[%emt 0:00:31]} 3. d4 {[%emt 0:00:22]} cxd4 {[%emt 0:00:06]} 4. Nxd4 {[%emt 0:00:04]} Nf6 {[%emt 0:01:14]} 5. Nc3 {[%emt 0:00:13]} d6 {[%emt 0:00:33]} 6. Be2 {[%emt 0:01:54]} e5 {[%emt 0:00:19]} 7. Nf3 {[%emt 0:03:10]} h6 {[%emt 0:00:26]} 8. O-O {[%emt 0:00:15]} Be7 {[%emt 0:00:06]} 9. Re1 {[%emt 0:01:01]} O-O {[%emt 0:00:08]} 10. h3 {[%emt 0:00:02]} Be6 {[%emt 0:00:22]} 11. Bf1 {[%emt 0:00:05]} Qa5 {[%emt 0:00:43]} 12. Bd2 {[%emt 0:05:34]} Qd8 {[%emt 0:00:17]} 13. Bc1 {[%emt 0:03:25] The position is equal.} Qa5 {[%emt 0:00:05]} 14. Bd2 {[%emt 0:00:52][%cal Oc3d5]} Qd8 {[%emt 0:00:06]} 15. Bc1 {[%emt 0:00:56] Not much happened in this game.   Weighted Error Value: White=0.04 (flawless) /Black=0.00 (flawless) .  OK:         	White=1     	Black=1} 1/2-1/2

[Event "LR Global GM Aspirant-1 2024"]
[Site "Dhaka"]
[Date "2024.02.15"]
[Round "4.1"]
[White "De Silva, L M S T"]
[Black "Rahman, Ziaur"]
[Result "0-1"]
[ECO "B22"]
[WhiteElo "2398"]
[BlackElo "2428"]
[Annotator "TA"]
[PlyCount "68"]
[EventDate "2024.02.12"]
[EventType "tourn"]
[EventCountry "BAN"]
[SourceTitle "playchess.com"]
[Source "ChessBase"]
[SourceQuality "1"]
[TimeControl "5400+30"]

{[%evp 9,68,0,8,8,2,0,22,7,2,0,0,0,0,-22,-34,-48,-58,-64,-51,-99,-95,-67,-66,-89,-87,-108,-66,-77,-70,-160,-166,-161,-163,-140,-164,-154,-166,-226,-175,-181,-114,-112,-104,-111,-113,-116,-45,-395,-399,-397,-385,-797,-781,-837,-638,-619,-619,-660,-662,-621,-617]} 1. e4 {[%emt 0:00:10][%cal Be2e4,Be4e5][%mdl 32]} c5 {[%emt 0:01:20]} 2. c3 {[%emt 1:31:20]} Nf6 3. e5 Nd5 4. Nf3 d6 5. Bb5+ Bd7 6. Bc4 e6 7. O-O {[%emt 0:00:00]} Bc6 {[%emt 0:03:28]} 8. d4 {[%emt 0:00:00] The position is equal.} Nd7 {[%emt 1:29:42]} 9. Qe2 {[%emt 0:03:30]} dxe5 {[%emt 0:00:30]} 10. dxe5 {[%emt 0:00:00]} Be7 {[%emt 0:00:00][%cal Bf8e7,Be7g5,Bg5f4,Bf4e5,Be5b2,Bb2d4][%mdl 32]} 11. Bd3 {[%emt 0:01:00]} g5 12. a3 {[%emt 0:00:00]} g4 {[%emt 0:00:00]} 13. Ne1 {[%emt 0:00:00][%cal Oc3c4]} Bg5 $1 {[%emt 0:00:00]} 14. c4 {[%emt 0:00:00]} (14. Bd2 $1 $15 {feels stronger.}) 14... Nf4 $1 $17 {[%emt 0:00:00]} (14... Bxc1 15. cxd5 exd5 16. Bf5 $11) 15. Bxf4 {[%emt 0:00:00]} Bxf4 {[%emt 0:00:00]} 16. Qxg4 {[%emt 0:00:00]} Bxe5 {[%emt 0:00:00] This pair of bishops is nice.} ({Much weaker is} 16... Nxe5 $6 17. Qxf4 Nxd3 18. Nxd3 Qxd3 19. Nc3 $11) 17. Qe2 {[%emt 0:00:00]} Rg8 {[%emt 0:00:00] And now ...Qh4 would win.} 18. g3 {[%emt 0:00:00][%cal Ob1d2]} Qc7 {[%emt 0:00:00][%cal Oh7h5]} 19. Nf3 {[%emt 0:00:00]} (19. Bxh7 $15 Rg7 20. Be4) 19... Bxf3 $1 {[%emt 0:00:00]} 20. Qxf3 {[%emt 0:00:00]} Bxb2 $40 {[%emt 0:00:00][%mdl 128] Black attacks with force.} 21. Ra2 {[%emt 0:00:00]} Ne5 {[%emt 0:00:00]} 22. Qe2 {[%emt 0:00:00]} Bd4 {[%emt 0:00:00] White must now prevent ...0-0-0.} 23. Bxh7 {[%emt 0:00:00] White is weak on the dark squares} (23. Nd2 $142) 23... Rh8 {[%emt 0:00:00]} 24. Be4 {[%emt 0:00:00] [#]} f5 {[%emt 0:00:00]} (24... O-O-O $1 $19 {Hoping for ...f5.} 25. Nd2 f5) 25. Bg2 {[%emt 0:00:00]} O-O-O {[%emt 0:00:00][%cal Oh8h2] aiming for ...Rxh2!} 26. Nd2 {[%emt 0:00:00]} Qh7 {[%emt 0:00:00] Black is much more active.} 27. h3 {[%emt 0:00:00] [#]} f4 {[%emt 0:00:00]} 28. Nf3 $2 {[%emt 0:00:00][%mdl 8192] This costs White the game.} (28. g4 $1 $15) 28... Nxf3+ $19 {[%emt 0:00:00]} 29. Qxf3 {[%emt 0:00:00]} fxg3 {[%emt 0:00:00]} 30. Qxg3 {[%emt 0:00:00]} (30. Kh1 gxf2 (30... Bxf2 $2 31. Rc1 $19) 31. Raxf2 Bxf2 32. Qxf2) 30... Rhg8 {[%emt 0:00:00] Black is clearly winning.} (30... Rdg8 $2 31. Qf3 $19) 31. Qh2 {[%emt 0:00:00]} Rd7 {[%emt 0:00:00]} 32. Kh1 {[%emt 0:00:00]} Rdg7 {[%emt 0:00:00]} 33. f3 {[%emt 0:00:00]} Qd3 {[%emt 0:00:00] Prevents Rd1} 34. Re1 {[%emt 0:00:00]} Qc3 {[%emt 0:00:00] Weighted Error Value: White=0.50/Black=0.19 (very precise) .  Loses game:     	White=1     	---        Mistake:       	White=4     	Black=2      Inaccurate:     	---       	Black=1      OK:         	White=7     	Black=10     Best:        	White=3     	Black=3      Strong:       	---       	Black=3} 0-1

[Event "LR Global GM Aspirant-1 2024"]
[Site "Dhaka"]
[Date "2024.02.15"]
[Round "4.2"]
[White "Liyanage, Ranindu Dilshan"]
[Black "Barua, Dibyendu"]
[Result "1-0"]
[ECO "D45"]
[WhiteElo "2366"]
[BlackElo "2404"]
[Annotator "TA"]
[PlyCount "105"]
[EventDate "2024.02.12"]
[EventType "tourn"]
[EventCountry "BAN"]
[SourceTitle "playchess.com"]
[Source "ChessBase"]
[SourceQuality "1"]
[TimeControl "5400+30"]

{[%evp 19,105,10,14,2,22,38,39,13,18,26,19,16,22,19,30,17,23,20,16,19,22,19,29,25,25,35,26,10,14,0,0,0,40,0,0,-12,0,0,0,0,0,0,0,0,8,8,29,17,100,11,227,262,258,247,280,273,253,291,285,234,283,296,316,297,286,274,279,271,271,241,389,389,383,355,350,256,432,422,582,592,617,590,614,609,606,586,568,513]} 1. d4 {[%emt 0:00:30]} d5 {[%emt 0:06:05]} 2. c4 {[%emt 0:00:17]} e6 {[%emt 0:00:09]} 3. Nf3 {[%emt 0:00:52]} Nf6 {[%emt 0:01:32]} 4. Nc3 {[%emt 0:00:19]} c6 {[%emt 0:15:05]} 5. e3 {[%emt 0:02:15]} Nbd7 {[%emt 0:06:12]} 6. Qc2 {[%emt 0:02:12]} Bd6 {[%emt 0:06:33]} 7. Be2 {[%emt 0:00:48]} dxc4 {[%emt 0:01:21]} 8. a4 {[%emt 0:00:41]} e5 {[%emt 0:02:06]} 9. O-O {[%emt 0:03:05]} O-O {[%emt 0:03:16]} 10. Bxc4 {[%emt 0:11:33]} Qe7 {[%emt 0:08:09]} 11. h3 {[%emt 0:08:21]} exd4 {[%emt 0:20:58]} 12. exd4 {[%emt 0:01:07]} Nb6 {[%emt 0:00:07]} 13. Bb3 {[%emt 0:07:27] White is slightly better.} Be6 {[%emt 0:06:05]} 14. Bg5 {[%emt 0:05:05][%cal Bc1g5,Bg5h4,Bh4g3,Bg3e5][%mdl 32]} Bxb3 {[%emt 0:00:55]} 15. Qxb3 {[%emt 0:00:06]} Qe6 {[%emt 0:00:25]} 16. Qxe6 {[%emt 0:03:47]} fxe6 {[%emt 0:00:06]} 17. Rfe1 {[%emt 0:00:51]} Rfe8 {[%emt 0:02:54]} 18. Re2 {[%emt 0:01:22]} h6 {[%emt 0:03:58]} 19. Bh4 {[%emt 0:02:56]} Nbd5 {[%emt 0:01:22]} 20. Bg3 {[%emt 0:03:48]} Bb4 {[%emt 0:02:15]} 21. Na2 {[%emt 0:04:34]} a5 {[%emt 0:04:29]} 22. Nc1 {[%emt 0:02:29]} Nh5 {[%emt 0:03:16][%cal Bf6h5,Bh5f4,Bf4d3][%mdl 32]} 23. Be5 {[%emt 0:10:40]} Nhf4 {[%emt 0:00:14]} 24. Rc2 {[%emt 0:03:51][%cal Be2c2,Bc2c4,Bc4e4][%mdl 32]} Rad8 {[%emt 0:01:52][%cal Ba8d8,Bd8d7,Bd7f7,Bf7f5][%mdl 32]} 25. Nb3 {[%emt 0:01:30]} Rd7 {[%emt 0:01:29]} 26. Nc5 {[%emt 0:03:12]} Bxc5 {[%emt 0:01:20]} 27. dxc5 {[%emt 0:00:38]} Nb4 {[%emt 0:00:25] A dynamic duo of knights.} 28. Rc4 {[%emt 0:02:45]} Nfd3 {[%emt 0:00:02]} 29. Bd6 $1 {[%emt 0:01:52]} e5 {[%emt 0:00:45][%cal Oe5e4]} 30. Re4 {[%emt 0:03:06][%cal Rf3e5]} Rf7 {[%emt 0:01:01][%cal Of7f4]} 31. b3 {[%emt 0:04:26]} Rf5 {[%emt 0:00:38]} 32. Rd1 {[%emt 0:02:49][%cal Ba1d1,Bd1d2,Bd2d6][%mdl 32]} Kf7 {[%emt 0:00:38]} 33. Rd2 {[%emt 0:01:07]} Re6 {[%emt 0:00:20]} (33... Kg8 $11 {remains equal.}) 34. Kh2 {[%emt 0:01:36]} (34. Re3 $16) 34... b6 $2 {[%emt 0:00:14] [#] A mistake that costs the game.} 35. cxb6 $1 $18 {[%emt 0:03:25] Threatens to win with b7.} Rxd6 {[%emt 0:00:01] [#]} 36. Nxe5+ $1 {[%emt 0:01:59][%mdl 512]} Rxe5 {[%emt 0:00:12]} 37. Rxe5 {[%emt 0:00:05]} Nxe5 {[%emt 0:00:04]} 38. Rxd6 {[%emt 0:00:39]} Ke7 {[%emt 0:00:12]} 39. Rd4 {[%emt 0:00:48]} Nd7 {[%emt 0:01:08]} 40. b7 {[%emt 0:00:12][%cal Od4d7] Rxd7+! is the strong threat.} Na6 {[%emt 0:00:21]} 41. Rg4 {[%emt 0:00:30]} Kf7 {[%emt 0:01:43]} 42. Rf4+ {[%emt 0:00:24]} Ke7 {[%emt 0:00:06]} 43. Re4+ {[%emt 0:00:22]} Kf7 {[%emt 0:00:35]} 44. Rc4 {[%emt 0:00:20]} c5 {[%emt 0:01:02]} (44... Nab8 {might work better.} 45. h4 (45. b4 axb4 46. Rxb4 c5 $18) 45... Ke6 46. Re4+ Kf7) 45. Re4 {[%emt 0:00:32]} Nab8 {[%emt 0:00:27]} 46. f4 {[%emt 0:00:16]} Nc6 {[%emt 0:00:32]} 47. Re3 {[%emt 0:01:19]} Nd4 $2 {[%emt 0:00:35]} (47... c4 48. Rc3 (48. bxc4 Nc5 $18) 48... Nd8 49. Rxc4 Nxb7) 48. g4 {[%emt 0:00:48] White is clearly winning.} Nb8 {[%emt 0:00:16]} 49. Rc3 {[%emt 0:00:18]} Ke6 {[%emt 0:00:44]} 50. Rxc5 {[%emt 0:00:07]} Ndc6 {[%emt 0:00:03]} 51. h4 {[%emt 0:00:55][%cal Bh3h4,Bh4h5][%mdl 32]} Kd6 {[%emt 0:00:11]} 52. Rf5 {[%emt 0:00:21]} Ke7 {[%emt 0:00:22]} 53. h5 {[%emt 0:00:26] Weighted Error Value: White=0.11 (very precise) /Black=0.30.  Loses game:     	---       	Black=1      Mistake:       	White=1     	Black=3      Inaccurate:     	White=2     	Black=2      OK:         	White=20    	Black=15     Best:        	---       	Black=3      Strong:       	White=2     	---        Brilliant:      	White=1     	---} 1-0

[Event "LR Global GM Aspirant-1 2024"]
[Site "Dhaka"]
[Date "2024.02.15"]
[Round "4.3"]
[White "Panesar Vedant"]
[Black "Murshed, Niaz"]
[Result "1-0"]
[ECO "B01"]
[WhiteElo "2452"]
[BlackElo "2363"]
[Annotator "TA"]
[PlyCount "82"]
[EventDate "2024.02.12"]
[EventType "tourn"]
[EventCountry "BAN"]
[SourceTitle "playchess.com"]
[Source "ChessBase"]
[SourceQuality "1"]
[TimeControl "5400+30"]

{[%evp 9,82,43,50,48,66,43,68,0,24,16,20,27,28,27,37,0,0,-5,0,0,0,-8,-9,-28,24,0,-9,-17,-22,-26,-6,-39,-38,-42,37,16,71,56,68,65,56,49,63,29,34,28,30,29,32,30,42,30,42,40,45,35,48,30,71,68,59,32,59,20,130,145,143,141,162,116,216,62,213,216,872]} 1. e4 {[%emt 0:00:04]} d5 {[%emt 0:05:29]} 2. exd5 {[%emt 0:00:08]} Qxd5 {[%emt 0:00:04]} 3. Nc3 {[%emt 0:00:06]} Qd8 {[%emt 0:00:03]} 4. d4 {[%emt 0:00:18]} Nf6 {[%emt 0:00:23]} 5. Nf3 {[%emt 0:00:09]} a6 {[%emt 0:00:20]} 6. Ne5 {[%emt 0:09:17]} e6 {[%emt 0:00:25]} 7. Be3 {[%emt 0:01:46]} Nbd7 {[%emt 0:05:10][%cal Bb8d7,Bd7b6,Bb6d5][%mdl 32]} 8. Bc4 {[%emt 0:02:31] White has more active pieces. The black rooks are passive.} (8. Qf3 $14) 8... Bd6 {[%emt 0:03:23]} 9. f4 {[%emt 0:05:45]} Nb6 {[%emt 0:00:57] aiming for ...Bxe5.} 10. Bb3 {[%emt 0:00:12]} Nbd5 {[%emt 0:00:40]} 11. Qf3 {[%emt 0:00:11]} O-O {[%emt 0:08:35]} 12. Bd2 {[%emt 0:05:26]} (12. Bf2 $5) 12... b5 {[%emt 0:15:19]} 13. Nxd5 {[%emt 0:01:53]} exd5 {[%emt 0:00:55]} 14. O-O {[%emt 0:02:57]} Bf5 {[%emt 0:05:33]} 15. c3 {[%emt 0:01:30]} Be4 {[%emt 0:01:31]} 16. Qh3 {[%emt 0:02:35]} Qe7 {[%emt 0:07:05]} (16... a5 $142) 17. g4 {[%emt 0:01:30]} c5 {[%emt 0:06:00]} 18. g5 {[%emt 0:02:53]} Bxe5 {[%emt 0:00:11]} 19. fxe5 {[%emt 0:01:35]} Ne8 {[%emt 0:06:16][%cal Bf6e8,Be8c7,Bc7e6][%mdl 32]} 20. Rae1 {[%emt 0:10:12][%cal Oe1e4]} Nc7 {[%emt 0:01:16]} 21. Qg4 {[%emt 0:00:11]} Bg6 {[%emt 0:12:42] Black is weak on the dark squares} (21... Ne6 $15 22. Rxe4 dxe4 23. Qxe4 Nxg5) 22. h4 $14 {[%emt 0:03:51][%cal Bh2h4,Bh4h5][%mdl 32]} Kh8 {[%emt 0:04:50]} (22... Rad8 $11) 23. h5 $16 {[%emt 0:01:13]} Bd3 {[%emt 0:00:08]} 24. Rf3 {[%emt 0:01:24]} c4 {[%emt 0:00:07][%cal Od3e4]} 25. Bd1 {[%emt 0:01:10]} Ne6 {[%emt 0:00:42][%cal Oh7h6]} 26. Rh3 {[%emt 0:03:59]} h6 {[%emt 0:01:27][%cal Re6g5]} 27. Bf3 {[%emt 0:05:15]} Rad8 {[%emt 0:02:13]} 28. Rg3 {[%emt 0:05:08]} Nxg5 {[%emt 0:07:38]} 29. Bxg5 {[%emt 0:00:12]} hxg5 {[%emt 0:00:06]} 30. Qxg5 {[%emt 0:00:13]} Qxg5 {[%emt 0:00:12]} 31. Rxg5 {[%emt 0:00:04]} Kh7 {[%emt 0:00:30]} 32. Rg3 {[%emt 0:04:02]} Bf5 {[%emt 0:01:15]} 33. Kf2 {[%emt 0:01:59]} Rd7 {[%emt 0:02:37]} 34. Ke3 {[%emt 0:06:43]} a5 {[%emt 0:01:39]} 35. Rf1 {[%emt 0:01:49][%cal Of3d5] And now Bxd5! would win.} Be6 {[%emt 0:00:10]} 36. Bd1 {[%emt 0:00:37]} Kh6 {[%emt 0:01:25] [#]} (36... Rb7 $11) 37. Rg6+ $3 {[%emt 0:01:42][%mdl 512]} fxg6 {[%emt 0:00:49]} 38. Rxf8 {[%emt 0:00:02]} gxh5 {[%emt 0:00:16]} 39. Rh8+ {[%emt 0:00:28]} Kg5 {[%emt 0:00:06]} (39... Kg6 $16) 40. Rxh5+ $18 {[%emt 0:00:14]} (40. Bxh5 g6 41. Bf3 b4 $11) 40... Kg6 {[%emt 0:00:02]} 41. Rh8 {[%emt 0:00:16]} Bf5 $2 {[%emt 0:01:45] Weighted Error Value: White=0.10 (very precise) /Black=0.20 (precise) .  Mistake:       	White=1     	Black=6      Inaccurate:     	White=6     	Black=2      OK:         	White=11    	Black=11     Best:        	White=3     	Black=3      Brilliant:      	White=1     	---} (41... Kg5 42. Rb8 b4) 1-0

[Event "LR Global GM Aspirant-1 2024"]
[Site "Dhaka"]
[Date "2024.02.15"]
[Round "4.4"]
[White "Mohammad Fahad, Rahman"]
[Black "Mayank Chakraborty"]
[Result "1/2-1/2"]
[ECO "D31"]
[WhiteElo "2418"]
[BlackElo "2409"]
[Annotator "TA"]
[PlyCount "53"]
[EventDate "2024.02.12"]
[EventType "tourn"]
[EventCountry "BAN"]
[SourceTitle "playchess.com"]
[Source "ChessBase"]
[SourceQuality "1"]
[TimeControl "5400+30"]

{[%evp 9,53,0,34,57,37,47,43,30,41,38,54,43,50,56,39,31,23,36,47,43,37,37,37,33,42,0,0,0,6,10,16,10,8,8,120,0,0,0,0,0,0,0,0,0,0,0]} 1. d4 {[%emt 0:00:19]} d5 {[%emt 0:00:07]} 2. c4 {[%emt 0:00:12]} e6 {[%emt 0:00:04]} 3. Nc3 {[%emt 0:00:33]} a6 {[%emt 0:00:05]} 4. cxd5 {[%emt 0:01:50]} exd5 {[%emt 0:00:02]} 5. Qb3 {[%emt 0:01:00]} Bd6 {[%emt 0:00:08]} 6. Qxd5 {[%emt 0:05:15]} Nf6 {[%emt 0:00:07] Prevents e4.} 7. Qb3 {[%emt 0:01:00]} c5 {[%emt 0:00:20]} 8. Be3 {[%emt 0:00:19] White is slightly better.} cxd4 {[%emt 0:00:05]} 9. Bxd4 {[%emt 0:00:04]} Nc6 {[%emt 0:00:11]} 10. Bb6 {[%emt 0:00:01]} Qe7 {[%emt 0:00:16]} 11. e3 $1 {[%emt 0:01:32]} O-O {[%emt 0:00:31]} 12. Nf3 {[%emt 0:00:16]} Nd7 {[%emt 0:09:19]} 13. Bd4 {[%emt 0:05:19]} b5 {[%emt 0:05:12][%cal Bb7b5,Bb5b4][%mdl 32]} 14. Rd1 {[%emt 0:18:52]} Bb7 {[%emt 0:00:23] [#]} 15. Bxg7 $1 {[%emt 0:01:07]} Kxg7 {[%emt 0:00:04]} 16. Qd5 {[%emt 0:00:05]} b4 $1 {[%emt 0:00:10]} 17. Ne4 {[%emt 0:18:15]} Nb6 {[%emt 0:01:02]} 18. Qxd6 {[%emt 0:00:44]} Qxe4 {[%emt 0:00:05]} 19. Bd3 {[%emt 0:00:09]} Qe7 {[%emt 0:00:37]} 20. Qg3+ {[%emt 0:00:20]} Kh8 {[%emt 0:00:05]} 21. Bxh7 {[%emt 0:02:35][%cal Od1d6]} Kxh7 {[%emt 0:00:30]} (21... Rfd8 $11 {remains equal.} 22. Rxd8+ Rxd8) 22. Qh3+ {[%emt 0:01:55]} (22. Ng5+ $16 Kh6 23. Rd6+ f6 (23... Kh5 24. Qh3+ Kxg5 25. f4#) 24. O-O) 22... Kg7 $11 {[%emt 0:01:12] The position is equal.} 23. Qg4+ {[%emt 0:00:17]} Kh7 {[%emt 1:21:25] [#] And now ...Rg8 would win.} 24. Qh3+ Kg7 25. Qg4+ Kh7 {[%emt 0:01:00] ...Rg8 is the strong threat.} 26. Qh3+ Kg7 27. Qg4+ {[%emt 0:02:00] Weighted Error Value: White=0.07 (flawless) /Black=0.07 (flawless) .  Mistake:       	White=1     	Black=1      Inaccurate:     	White=1     	---        OK:         	White=11    	Black=7      Best:        	White=2     	Black=4      Strong:       	White=1     	Black=1} 1/2-1/2

[Event "LR Global GM Aspirant-1 2024"]
[Site "Dhaka"]
[Date "2024.02.15"]
[Round "4.5"]
[White "Siddharth, Jagadeesh"]
[Black "Aradhya, Garg"]
[Result "1-0"]
[ECO "D00"]
[WhiteElo "2457"]
[BlackElo "2390"]
[Annotator "RC"]
[PlyCount "123"]
[EventDate "2024.02.12"]
[EventType "tourn"]
[EventCountry "BAN"]
[SourceTitle "playchess.com"]
[Source "ChessBase"]
[SourceQuality "1"]
[TimeControl "5400+30"]

1. d4 {[%emt 0:05:07]} d5 {[%emt 0:00:01]} 2. Nc3 {[%emt 0:00:09]} Nf6 {[%emt 0:00:11]} 3. Bf4 {[%emt 0:00:11]} c5 {[%emt 0:00:21]} 4. e3 {[%emt 0:00:07]} Bg4 {[%emt 0:09:19]} 5. f3 {[%emt 0:01:25]} Bd7 {[%emt 0:00:06]} 6. dxc5 {[%emt 0:07:47]} Nc6 {[%emt 0:01:42]} 7. a3 {[%emt 0:08:20]} e6 {[%emt 0:06:40]} 8. Nb5 {[%emt 0:03:59]} e5 {[%emt 0:02:19]} 9. Bg5 {[%emt 0:00:07]} a6 {[%emt 0:12:13]} 10. Nd6+ {[%emt 0:12:26]} Bxd6 {[%emt 0:00:26]} 11. cxd6 {[%emt 0:00:04]} Be6 {[%emt 0:03:15]} 12. Ne2 {[%emt 0:05:36]} Qxd6 {[%emt 0:14:47]} 13. c4 {[%emt 0:00:42]} d4 {[%emt 0:01:04]} 14. Qd3 {[%emt 0:00:46]} e4 {[%emt 0:07:05]} 15. fxe4 {[%emt 0:00:24]} Ne5 {[%emt 0:05:31]} 16. Qxd4 {[%emt 0:00:42]} Nxe4 {[%emt 0:16:07]} 17. Nc3 {[%emt 0:04:47]} Qxd4 {[%emt 0:00:20]} 18. exd4 {[%emt 0:00:07]} Nxc3 {[%emt 0:00:05]} 19. dxe5 {[%emt 0:00:08]} Ne4 {[%emt 0:00:37]} 20. Be3 {[%emt 0:01:59]} Rc8 {[%emt 0:00:40]} 21. Rc1 {[%emt 0:01:14]} O-O {[%emt 0:01:07]} 22. Be2 {[%emt 0:00:26]} Rfd8 {[%emt 0:01:01]} 23. O-O {[%emt 0:02:56]} Rd7 {[%emt 0:02:11]} 24. Rfd1 {[%emt 0:01:44]} Rxd1+ {[%emt 0:00:45]} 25. Rxd1 {[%emt 0:00:12]} h5 {[%emt 0:03:46]} 26. Bf3 {[%emt 0:02:31]} Bg4 {[%emt 0:00:52]} 27. Bxg4 {[%emt 0:01:11]} hxg4 {[%emt 0:00:02]} 28. Rd4 {[%emt 0:00:11]} Nc5 {[%emt 0:00:48]} 29. Rxg4 {[%emt 0:10:22]} Nd3 {[%emt 0:00:03]} 30. Bh6 {[%emt 0:00:25]} Kh7 {[%emt 0:04:10]} 31. Bd2 {[%emt 0:02:41]} Nxb2 {[%emt 0:00:41]} 32. e6 {[%emt 0:00:01]} fxe6 {[%emt 0:02:29]} 33. Bc3 {[%emt 0:00:38]} Nxc4 {[%emt 0:02:51]} 34. Rxg7+ {[%emt 0:00:01]} Kh6 {[%emt 0:00:01]} 35. Rxb7 {[%emt 0:01:18]} Nxa3 {[%emt 0:00:01]} 36. Bd2+ {[%emt 0:03:07]} Kg6 {[%emt 0:00:09]} 37. Rb6 {[%emt 0:01:51]} Nc4 {[%emt 0:03:04]} 38. Rxe6+ {[%emt 0:00:02]} Kf5 {[%emt 0:00:09]} 39. Re2 {[%emt 0:00:05]} Nxd2 {[%emt 0:01:10]} 40. Rxd2 {[%emt 0:00:02]} Rc1+ {[%emt 0:00:15]} 41. Kf2 {[%emt 0:00:01]} Ra1 {[%emt 0:00:01]} 42. Kg3 {[%emt 0:02:19]} a5 {[%emt 0:00:10]} 43. Kh4 {[%emt 0:00:05]} a4 {[%emt 0:00:29]} 44. Kh5 {[%emt 0:00:42]} a3 {[%emt 0:00:38]} 45. g4+ {[%emt 0:00:06]} Kf4 {[%emt 0:01:16]} 46. g5 {[%emt 0:01:55]} Rb1 {[%emt 0:00:42]} 47. Rd4+ {[%emt 0:02:13]} Kf5 {[%emt 0:00:23]} 48. Ra4 {[%emt 0:00:02]} Rb3 {[%emt 0:00:17]} 49. h4 {[%emt 0:00:36]} Re3 {[%emt 0:00:40]} 50. Ra5+ {[%emt 0:02:11]} Kf4 {[%emt 0:00:16]} 51. Kg6 {[%emt 0:00:40]} Rb3 {[%emt 0:00:14]} 52. Kh6 {[%emt 0:01:03]} Kg4 {[%emt 0:01:44]} 53. h5 {[%emt 0:00:43]} Rb8 {[%emt 0:00:47]} 54. Rxa3 {[%emt 0:01:06]} Rh8+ {[%emt 0:00:03]} 55. Kg7 {[%emt 0:00:09]} Rxh5 {[%emt 0:00:05]} 56. g6 {[%emt 0:00:03]} Rb5 {[%emt 0:00:07]} 57. Kh7 {[%emt 0:00:43]} Rh5+ {[%emt 0:01:09]} 58. Kg8 {[%emt 0:00:08]} Rb5 {[%emt 0:00:18]} 59. g7 {[%emt 0:00:22]} Rc5 {[%emt 0:00:06]} 60. Ra4+ {[%emt 0:01:06]} Kg3 {[%emt 0:00:25]} 61. Kh7 {[%emt 0:00:09]} Rc7 {[%emt 0:00:10]} 62. Kh8 {[%emt 0:00:05]} 1-0